Cogmind - Beta 16 @@@ ROGUE MODE // 2026.01.12 @ 00:18:34 Player: MrProgressor Result: Destroyed by Enhanced Grunt with Neutron Cannon Performance ------------- Evolutions (4) 2000 Regions Visited (11) 2200 Robots Destroyed (105) 525 Value Destroyed (3855) 3855 Prototype IDs (239) 4780 Alien Tech Used (0) 0 Bonus (4169) 4169 TOTAL SCORE: 17529 Bonus ------- High Alert Combat Kills 24 Follower Combat Kills 45 Entered DSFs 500 Aligned with FarCom 300 Met Data Miner 300 Used Data Conduit 3000 Cogmind --------- Core Integrity 0/850 Matter 191/300 Energy 38/100 System Corruption 14% Temperature Cool (0) Movement Core (1200) Ox23 Location -6/Data Miner Parts ------- > --- POWER (2) -------- (None) > --- PROPULSION (5) --- (None) > --- UTILITY (6) ------ High-capacity Storage Unit Advanced Melee Analysis Suite Target Analyzer Core Analyzer Improved Actuator Array Layered Medium Armor Plating > --- WEAPON (2) ------- Antimatter Cannon Antimatter Cannon > --- INVENTORY (20) --- Advanced Heat Sink Advanced Heat Sink High-capacity Storage Unit Large Battery (200) Matter Compressor (250) Trap Scanner IFF Parser Phase Shifter Improved Hardlight Generator Dynamic Insulation System Guided Plasma Cannon Bore Cannon Precision Rocket Launcher Scatter Rocket Array Improved Plasma Cutter Peak State ------------ > --- POWER ------------ Cold Fusion Reactor Light Antimatter Reactor > --- PROPULSION ------- Carbon-fiber Leg Titanium Leg Titanium Leg Flexi-carbon Leg Flexi-carbon Leg > --- UTILITY ---------- High-capacity Storage Unit Advanced Targeting Computer Core Analyzer Core Analyzer Advanced System Shield Advanced System Shield > --- WEAPON ----------- Cooled Plasma Cannon Guided Plasma Cannon > --- INVENTORY -------- Angular Momentum Engine Flexi-carbon Leg Cryofiber Web Advanced Heat Sink Advanced Heat Sink High-capacity Storage Unit Large Battery Matter Compressor Trap Scanner Advanced Melee Analysis Suite Improved Actuator Array Layered Medium Armor Plating Improved Hardlight Generator Dynamic Insulation System Cooled Plasma Cannon Hypervelocity Gauss Rifle Hypervelocity Gauss Rifle Precision Rocket Launcher Scatter Rocket Array Axe [Rating: 78] Favorites ----------- Power Ion Engine Engine Ion Engine Power Core Micro Nuclear Core Reactor Light Antimatter Reactor Propulsion Flexi-carbon Leg Treads Light Treads Leg Flexi-carbon Leg Wheel Wheel Utility Core Analyzer Device Trap Scanner Storage High-capacity Storage Unit Processor Core Analyzer Hackware Advanced System Shield Protection Propulsion Shielding Weapon Antimatter Cannon Energy Gun Medium Laser Energy Cannon Cooled Plasma Cannon Ballistic Gun Assault Rifle Ballistic Cannon Antimatter Cannon Launcher Grenade Launcher Special Weapon Mining Laser Slashing Weapon Axe Build | -11 -10 -10 -10 -9 -8 -7 -7 -6 -6 -6 -6 ------- Run | Yrd Mat Min Exi Min Mat Fac DSF Fac Low Low Dat Slots Evolved 8 | . . . . . 4 2 . 2 . . . Power 1 | . . . . . . . . 1 . . . Propulsion 3 | . . . . . 1 1 . 1 . . . Utility 4 | . . . . . 3 1 . . . . . Weapon . | . . . . . . . . . . . . Parts Attached 100 | 5 4 2 2 9 17 1 7 33 10 3 7 Power 10 | . 1 . . 1 1 . . 4 1 1 1 Engine 6 | . 1 . . 1 1 . . 2 . 1 . Core 1 | . . . . . . . . . . . 1 Reactor 3 | . . . . . . . . 2 1 . . Propulsion 26 | 2 . 1 2 2 2 . 4 10 3 . . Treads 3 | 2 . 1 . . . . . . . . . Leg 17 | . . . . . . . 4 10 3 . . Wheel 6 | . . . 2 2 2 . . . . . . Hover . | . . . . . . . . . . . . Flight . | . . . . . . . . . . . . Utility 35 | 2 1 . . 3 9 1 2 7 4 2 4 Device 18 | 2 . . . 1 4 1 1 2 3 2 2 Storage 2 | . 1 . . 1 . . . . . . . Processor 8 | . . . . . 3 . 1 2 . . 2 Hackware 2 | . . . . . . . . 2 . . . Protection 5 | . . . . 1 2 . . 1 1 . . Artifact . | . . . . . . . . . . . . Weapon 29 | 1 2 1 . 3 5 . 1 12 2 . 2 Energy Gun 6 | 1 1 . . 2 2 . . . . . . Energy Cannon 5 | . . . . . 1 . 1 2 1 . . Ballistic Gun 8 | . . . . 1 1 . . 6 . . . Ballistic Cannon 2 | . . . . . . . . 1 1 . . Launcher 4 | . . 1 . . . . . 3 . . . Special Weapon 2 | . 1 . . . . . . . . . 1 Impact Weapon . | . . . . . . . . . . . . Slashing Weapon 2 | . . . . . 1 . . . . . 1 Piercing Weapon . | . . . . . . . . . . . . Special Melee Weapon . | . . . . . . . . . . . . Unidentified Prototypes 8 | . . . . . 2 . . 6 . . . Parts Lost 28 | . . . . . . . . 5 9 3 11 Power 7 | . . . . . . . . 2 1 1 3 Propulsion 9 | . . . . . . . . 1 3 . 5 Utility 6 | . . . . . . . . 1 2 2 1 Weapon 6 | . . . . . . . . 1 3 . 2 Highest Loss Streak 11 | . . . . . . . . 1 7 3 11 To Critical Strikes . | . . . . . . . . . . . . Average Backups 19 | 7 11 23 20 20 18 18 18 19 18 18 18 Power 1 | 1 1 2 1 1 1 1 1 . . . . Propulsion 2 | 4 5 5 4 3 3 3 3 1 . . . Utility 9 | . 1 7 7 9 9 10 10 12 11 10 11 Weapon 5 | 1 3 6 7 5 3 4 4 5 5 6 5 Tool/Special . | . . . . . . . . . . . . Unused Backups 40 | 8 1 3 . 4 8 . 3 8 . . 5 Power 2 | 1 . 1 . . . . . . . . . Propulsion 9 | 4 . . . . 2 . 2 1 . . . Utility 14 | 1 . 1 . 2 1 . 1 4 . . 4 Weapon 14 | 2 1 . . 2 5 . . 3 . . 1 Tool/Special 1 | . . 1 . . . . . . . . . Average Slot Usage (%) 98 | . 98 100 100 100 99 99 99 99 96 99 89 Engine 8 | . 14 14 14 14 9 7 7 2 6 5 5 Reactor 4 | . . . . . . . . 9 5 6 4 Treads 5 | . 28 28 18 . . . . . . . . Leg 17 | . . . . . . . 15 32 30 33 28 Wheel 6 | . . . 9 28 27 30 14 . . . . Device 10 | . 12 14 14 3 16 22 23 2 12 23 21 Storage 8 | . 14 14 14 14 9 7 7 6 6 6 6 Processor 10 | . . . . . 17 15 15 18 14 8 11 Hackware 4 | . . . . . . . . 11 5 . . Protection 1 | . . . . 11 1 . . . . . . Energy Gun 3 | . 13 2 2 23 4 . . . . . . Energy Cannon 2 | . . . . . . . 6 5 3 . . Ballistic Gun 6 | . 14 14 11 3 9 7 7 6 . . . Ballistic Cannon 2 | . . . . . . . . . 8 13 . Launcher 2 | . . 11 14 . 2 . . . . . . Peak Build Rating 78 | 7 9 9 10 15 31 35 51 78 76 75 73 Average Rating 44 | 6 7 9 9 12 28 34 45 70 71 73 64 On Entrance 32 | 6 7 9 9 10 15 31 35 51 75 72 75 Avg Prop Armor Cover (%) 11 | . . . . . . . 11 . . . . Naked Turns . | . . . . . . . . . . . . Heaviest Build 91 | 15 90 91 91 91 69 60 66 82 91 90 76 Greatest Support 90 | 40 40 40 40 20 32 42 66 89 90 90 90 Greatest Overweight (x) 5 | . 2 2 4 4 2 1 5 1 1 . 1 Average Overweight (x) . | . 1 2 3 2 1 1 . . . . . Largest Inventory Capacity 25 | 8 25 25 25 25 20 20 20 20 20 20 20 Average Capacity 20 | 8 23 25 25 22 20 20 20 20 20 20 20 Most Carried 25 | 8 23 25 25 25 20 20 20 20 20 19 19 Average Carried 19 | 7 11 24 24 21 19 19 19 19 18 18 18 Final Capacity 25 | 8 25 25 25 20 20 20 20 20 20 20 20 Final Carried 25 | 8 23 25 24 20 20 20 20 20 19 19 15 Class Distribution -------------------- 36% | Mutant 27% | Hacker-Mutant 22% | Scavenger-Mutant 6% | Skirmisher Dominant Class ---------------- Mutant | -10/Materials Mutant | -10/Mines Mutant | -10/Exiles Mutant | -9/Mines Skirmisher | -8/Materials Assassin | -7/Factory Mutant | -7/DSF Hacker-Mutant | -6/Factory Scavenger-Mutant | -6/Lower Caves Scavenger-Mutant | -6/Lower Caves Scavenger-Mutant | -6/Data Miner Resources | -11 -10 -10 -10 -9 -8 -7 -7 -6 -6 -6 -6 ----------- Run | Yrd Mat Min Exi Min Mat Fac DSF Fac Low Low Dat Matter Collected 3271 | 337 94 57 10 150 208 . 368 1369 390 201 87 Remotely . | . . . . . . . . . . . . Salvage Created 4736 | 259 159 22 . 220 262 . 275 2682 732 38 87 Parts 254 | 19 7 5 . 12 23 . 25 121 29 8 5 Haulers Intercepted 10 | . 1 . . . 4 . . 5 . . . Recyclers Shooed 5 | . . . . 1 . . . 4 . . . Parts Field Recycled . | . . . . . . . . . . . . Retrieved Matter . | . . . . . . . . . . . . Parts Self-Destructed 28 | . . . . . . . . . 25 3 . Prevented . | . . . . . . . . . . . . Parts Restored . | . . . . . . . . . . . . Kills | -11 -10 -10 -10 -9 -8 -7 -7 -6 -6 -6 -6 ------- Run | Yrd Mat Min Exi Min Mat Fac DSF Fac Low Low Dat Combat Hostiles Destroyed 70 | . 2 3 . 7 1 . 5 32 17 2 1 Melee 2 | . . . . . . . 1 . . . 1 Guns 26 | . 2 . . 6 1 . . 17 . . . Cannons 31 | . . . . . . . 4 10 15 2 . AOE 8 | . . 3 . 1 . . . 2 2 . . Classes Destroyed 17 | 2 3 1 . 1 2 . 2 5 . 1 . Worker 5 | . . . . . . . . 5 . . . Builder 7 | . . . . . 1 . . 6 . . . Tunneler 10 | 8 . . . 2 . . . . . . . Hauler 10 | . 1 . . . 4 . . 5 . . . Recycler 4 | 1 . . . 1 . . . 2 . . . Watcher 4 | . 1 . . . 2 . . 1 . . . Swarmer 7 | . . 3 . . . . . . 4 . . Grunt 30 | . 2 . . 2 . . . 19 7 . . Brawler 2 | . . . . . . . . 1 1 . . Duelist 4 | . . . . . . . . 1 3 . . Sentry 6 | . . . . . 1 . 1 3 1 . . Specialist 3 | . . . . . . . 3 . . . . Hunter 4 | . . . . . . . . 3 1 . . Programmer 6 | . . . . . . . . 5 . 1 . Heavy 1 | . . . . . . . 1 . . . . Enhanced Grunt 1 | . . . . . . . . . . . 1 Thief 1 | . . . . . . . . . . 1 . Assembled 5 | . . . . 5 . . . . . . . Best Kill Streak 9 | 2 2 3 . 2 2 . 4 9 6 1 1 Combat Bots Only 6 | . 1 3 . 2 1 . 4 6 6 1 1 Max Kills in Single Turn 8 | 1 1 3 . 1 1 . 1 8 2 1 1 Gunslinging . | . . . . . . . . . . . . Exploded 3 | . . 3 . 1 . . . 2 2 . . Melee 1 | . . . . . . . 1 . . . 1 Uniques/NPCs Destroyed . | . . . . . . . . . . . . Combat | -11 -10 -10 -10 -9 -8 -7 -7 -6 -6 -6 -6 -------- Run | Yrd Mat Min Exi Min Mat Fac DSF Fac Low Low Dat Hostile Shots Fired 473 | . 31 5 . 13 2 . 11 242 103 16 50 Missed 149 | . 10 2 . 4 . . 4 88 18 9 14 Hits 324 | . 21 3 . 9 2 . 7 154 85 7 36 Melee 3 | . . . . . . . . 2 1 . . Projectile 321 | . 21 3 . 9 2 . 7 152 84 7 36 Critical Strikes 11 | . . . . . . . . 7 4 . . Part Disruptions 1 | . . . . . . . . 1 . . . Damage Taken 5882 | . 275 22 . 157 26 . 51 2107 1578 411 1255 Core 961 | . 23 . . 53 14 . . 112 158 68 533 Absorbed by Shields 287 | . . . . . . . 12 275 . . . Redirected to Shielding 17 | . . . . 17 . . . . . . . Ignored by Resistances 403 | . . . . . . . . . . . 403 Regen/Repaired (Parts) 305 | . . . . . 10 . . 295 . . . Core Remaining (%) 91 | 100 . . . 69 97 . 100 . . . . Volleys Fired 317 | 29 28 1 . 23 13 . 13 133 55 14 8 Largest 2 | 2 2 1 . 2 2 . 1 2 2 2 2 Hottest 210 | 70 100 30 . 115 87 . 120 140 210 66 66 Shots Fired 572 | 58 55 1 . 40 24 . 13 251 89 29 12 Gun 335 | 58 54 . . 39 20 . . 164 . . . Cannon 224 | . . . . . . . 13 85 88 29 9 Launcher 9 | . . 1 . 1 4 . . 2 1 . . Special 4 | . 1 . . . . . . . . . 3 Kinetic 300 | 29 27 . . 2 11 . . 164 29 29 9 Thermal 263 | 29 28 . . 37 9 . 13 85 59 . 3 Explosive 9 | . . 1 . 1 4 . . 2 1 . . Electromagnetic . | . . . . . . . . . . . . Robot Hit Streak 40 | 6 9 . . 3 15 . 2 40 11 1 4 Robot Miss Streak 8 | 5 4 . . 8 3 . . 4 3 2 2 Penetration Max . | . . . . . . . . . . . . Secondary Targets 3 | . 1 . . . . . . 2 . . . Max Gunslinging Chain 1 | . 1 . . . . . . 1 . . . Shots Hit Robots 358 | 31 34 . . 17 21 . 3 185 49 2 16 Core Hits 201 | 10 8 4 . 19 17 . 7 102 25 2 7 Critical Kills 5 | . . . . . . . . 5 . . . Critical Parts Destroyed 2 | . . . . . . . . 2 . . . Critical Strikes 13 | . 1 . . 1 . . . 9 . . 2 Burn 2 | . 1 . . 1 . . . . . . . Meltdown 2 | . . . . . . . . 2 . . . Destroy 5 | . . . . . . . . 5 . . . Sever 4 | . . . . . . . . 2 . . 2 Melee Attacks 29 | . . . . . 5 . 1 10 . . 13 Impact . | . . . . . . . . . . . . Slashing 29 | . . . . . 5 . 1 10 . . 13 Piercing . | . . . . . . . . . . . . Sneak Attacks 7 | . . . . . 2 . 1 2 . . 2 Combat Hostiles . | . . . . . . . . . . . . Follow-up Attacks 2 | . . . . . . . . . . . 2 Damage Inflicted 11010 | 405 437 87 . 259 584 . 539 5789 2223 78 609 Guns 3981 | 405 437 . . 237 282 . . 2620 . . . Cannons 4658 | . . . . . . . 470 1900 2007 78 203 Explosions 1293 | . . 87 . 22 76 . . 892 216 . . Melee 1003 | . . . . . 226 . 69 320 . . 388 Ramming 57 | . . . . . . . . 57 . . . Kinetic 4249 | 181 223 . . 31 214 . . 2620 699 78 203 Thermal 4960 | 224 214 . . 206 68 . 470 2452 1308 . 18 Explosive 689 | . . 87 . 22 76 . . 288 216 . . Electromagnetic 52 | . . . . . . . . 52 . . . Impact . | . . . . . . . . . . . . Slashing 1003 | . . . . . 226 . 69 320 . . 388 Piercing . | . . . . . . . . . . . . Highest Corruption 14 | . . . . . . . . 2 3 14 14 Average Corruption 4 | . . . . . . . . 1 2 9 14 Corruption Purged . | . . . . . . . . . . . . Corruption Blocked . | . . . . . . . . . . . . Effects 88 | . . . . . . . . 23 30 26 9 Message Errors 19 | . . . . . . . . 3 6 7 3 Matter Fused 24 | . . . . . . . . 8 5 9 2 Heat Flow Errors 11 | . . . . . . . . 3 5 1 2 Energy Discharges 16 | . . . . . . . . 6 7 2 1 Data Loss (minor) 8 | . . . . . . . . . 4 4 . Data Loss (major) 6 | . . . . . . . . 1 2 2 1 Misfires 3 | . . . . . . . . 1 1 1 . Weapon Failures 1 | . . . . . . . . 1 . . . Overload Shots 24 | . . . . . . . . 4 20 . . Overflow Damage 177 | . . . . . . . . 87 13 . 77 Projectiles 16 | . . . . . . . . 10 5 . 1 Explosions 76 | . . . . . . . . 68 8 . . Melee 85 | . . . . . . . . 9 . . 76 Knockbacks 8 | . . . . . . . . . 4 . 4 Impact . | . . . . . . . . . . . . Kinetic 8 | . . . . . . . . . 4 . 4 Secondary . | . . . . . . . . . . . . Self-Inflicted Damage . | . . . . . . . . . . . . Shots . | . . . . . . . . . . . . Rammed . | . . . . . . . . . . . . Targets Rammed 2 | . . . . . . . . 2 . . . Kicked 2 | . . . . . . . . 2 . . . Crushed . | . . . . . . . . . . . . Highest Temperature 421 | 45 192 . . 162 421 . . 220 403 222 144 Average Temperature 78 | 14 73 . . 53 85 . . 84 117 121 65 Received Heat Transfer 1458 | . 141 . . 9 9 . 8 700 591 . . Effects 3 | . . . . . 1 . . . 2 . . Shutdowns 1 | . . . . . . . . . 1 . . Interference 1 | . . . . . 1 . . . . . . Short Circuit 1 | . . . . . . . . . 1 . . Siege Activations . | . . . . . . . . . . . . Martial Activations . | . . . . . . . . . . . . Shielding Activations . | . . . . . . . . . . . . Robots Disrupted 1 | . . . . . . . . 1 . . . Combat Hostiles . | . . . . . . . . . . . . Robots Corrupted . | . . . . . . . . . . . . Combat Hostiles . | . . . . . . . . . . . . Parts Fried . | . . . . . . . . . . . . Impact Corruptions . | . . . . . . . . . . . . Robots Melted 3 | . . . . . . . . 3 . . . Combat Hostiles 3 | . . . . . . . . 3 . . . Parts Melted 10 | 1 . . . . . . 1 6 2 . . Heat Transferred 8279 | 666 703 . . 629 148 . 1040 3250 1769 . 74 Parts Sabotaged 4 | . . . . . . . . 4 . . . Parts Stolen . | . . . . . . . . . . . . Parts Stripped . | . . . . . . . . . . . . Power Chain Reactions . | . . . . . . . . . . . . Alert | -11 -10 -10 -10 -9 -8 -7 -7 -6 -6 -6 -6 ------- Run | Yrd Mat Min Exi Min Mat Fac DSF Fac Low Low Dat Maximum Alert Level 2 | . . . . . . . . 2 . . . Low Security (%) 87 | 100 100 100 . 100 100 100 100 68 . . . Level 1 10 | . . . . . . . . 24 . . . Level 2 2 | . . . . . . . . 6 . . . Level 3 . | . . . . . . . . . . . . Level 4 . | . . . . . . . . . . . . Level 5 . | . . . . . . . . . . . . High Security . | . . . . . . . . . . . . Max Security . | . . . . . . . . . . . . Peak Influence 618 | 10 20 86 . 95 39 . 110 618 . . . Initial 57 | . 3 . . . . . . 57 . . . Average 68 | 1 4 5 . 8 4 . 75 155 . . . Influence Increases 2663 | 45 120 86 . 110 147 . 110 1491 509 45 . Destroy 0b10 Robot/C 1260 | . 40 60 . 40 20 . 100 640 340 20 . Destroy 0b10 Robot/NC 200 | 45 10 . . 15 35 . . 95 . . . Destroy Leader 256 | . 4 10 . 10 22 . 10 160 30 10 . Allied During Kill 4 | . . . . . . . . . 4 . . Successful Hack 182 | . 36 . . . 45 . . 101 . . . Disable Machine 285 | . 15 15 . 45 . . . 210 . . . Anti-Garrison Action 150 | . . . . . . . . 150 . . . Destroy Structure 116 | . . 1 . . 25 . . 90 . . . Lose Combat Pursuer 210 | . 15 . . . . . . 45 135 15 . Influence Decreases 2663 | 40 125 86 . 110 147 . . 988 961 206 . Entered New Map 314 | . 2 . . . . . . 53 227 32 . Time Decay 1854 | 40 123 86 . 110 142 . . 575 604 174 . Lost Part 140 | . . . . . . . . 50 90 . . Lost Ally 50 | . . . . . . . . 10 40 . . Purge Threat 305 | . . . . . 5 . . 300 . . . Squads Dispatched 12 | . . . . . . . 2 10 . . . Investigation 1 | . . . . . . . . 1 . . . Extermination 5 | . . . . . . . . 5 . . . Reinforcement 4 | . . . . . . . 2 2 . . . Assault 2 | . . . . . . . . 2 . . . Garrison . | . . . . . . . . . . . . Intercept . | . . . . . . . . . . . . Searches Triggered . | . . . . . . . . . . . . Construction Impeded . | . . . . . . . . . . . . Haulers Reinforced 2 | . . . . . . . . 2 . . . Active Scanning Responses . | . . . . . . . . . . . . Cargo Convoy Interrupts . | . . . . . . . . . . . . Stealth | -11 -10 -10 -10 -9 -8 -7 -7 -6 -6 -6 -6 --------- Run | Yrd Mat Min Exi Min Mat Fac DSF Fac Low Low Dat Distress Signals 4 | . 2 . . . 1 . . 1 . . . Communications Jammed . | . . . . . . . . . . . . Distress Signals . | . . . . . . . . . . . . Times Spotted 111 | . 14 3 . 10 5 . 2 43 26 4 4 Peak Tracking Total 9 | . 3 3 . 3 2 . 2 7 9 2 4 Tactical Retreats 13 | . 1 . . 3 . . . 2 6 1 . Traps | -11 -10 -10 -10 -9 -8 -7 -7 -6 -6 -6 -6 ------- Run | Yrd Mat Min Exi Min Mat Fac DSF Fac Low Low Dat Traps Triggered . | . . . . . . . . . . . . Indirectly . | . . . . . . . . . . . . Trap Hack Attempts . | . . . . . . . . . . . . Triggered . | . . . . . . . . . . . . Disarmed . | . . . . . . . . . . . . Reprogrammed . | . . . . . . . . . . . . Reused 3 | . . . . 3 . . . . . . . Traps Extracted . | . . . . . . . . . . . . Installed 4 | . . . 1 3 . . . . . . . Triggered . | . . . . . . . . . . . . Most Traps Carried 4 | . . 4 4 3 . . . . . . . Machines | -11 -10 -10 -10 -9 -8 -7 -7 -6 -6 -6 -6 ---------- Run | Yrd Mat Min Exi Min Mat Fac DSF Fac Low Low Dat Machines Disabled 21 | . 1 1 . 3 . . . 15 1 . . Max in Single Turn 9 | . 1 1 . 3 . . . 9 1 . . Garrison Access 3 | . . . . . 1 . . 2 . . . Machines Repaired . | . . . . . . . . . . . . Machines Dismantled . | . . . . . . . . . . . . Machines Sabotaged . | . . . . . . . . . . . . Overloaded Fab Kills . | . . . . . . . . . . . . Hacking | -11 -10 -10 -10 -9 -8 -7 -7 -6 -6 -6 -6 --------- Run | Yrd Mat Min Exi Min Mat Fac DSF Fac Low Low Dat Machines Accessed 38 | . 5 . 2 . 9 2 . 16 . . 4 Terminals 21 | . 4 . . . 6 2 . 9 . . . Fabricators 2 | . . . . . . . . 2 . . . Repair Stations 2 | . . . . . 1 . . 1 . . . Recycling Units 3 | . 1 . . . . . . 2 . . . Scanalyzers 1 | . . . . . 1 . . . . . . Garrison Access 3 | . . . . . 1 . . 2 . . . Total Hacks 169 | . 17 . 2 . 38 4 . 78 . . 30 Successful 108 | . 11 . 2 . 28 1 . 36 . . 30 Failed 61 | . 6 . . . 10 3 . 42 . . . Catastrophic 10 | . . . . . 2 1 . 7 . . . Database Lockouts . | . . . . . . . . . . . . Manual 48 | . 6 . 1 . 16 . . 25 . . . Terminals 101 | . 15 . . . 30 4 . 52 . . . Fabricators 4 | . . . . . . . . 4 . . . Repair Stations 15 | . . . . . 2 . . 13 . . . Recycling Units 8 | . 2 . . . . . . 6 . . . Scanalyzers 5 | . . . . . 5 . . . . . . Garrison Access 4 | . . . . . 1 . . 3 . . . Terminal Hacks 67 | . 7 . 2 . 14 1 . 13 . . 30 Record 12 | . . . 1 . . . . . . . 11 Part Schematic 14 | . . . . . . . . 1 . . 13 Robot Schematic 3 | . . . . . . . . . . . 3 Robot Analysis 6 | . 2 . . . 2 . . 2 . . . Prototype ID Bank 9 | . . . . . 4 . . 2 . . 3 Open DSF 1 | . . . . . . 1 . . . . . Branch Access Points 3 | . 1 . . . 1 . . 1 . . . Emergency Access Points 6 | . 2 . . . 3 . . 1 . . . Scanalyzer Index 1 | . . . . . 1 . . . . . . Unreport Threat 3 | . . . . . 1 . . 2 . . . Locate Traps 3 | . . . . . . . . 3 . . . Dispatch Records 1 | . . . . . 1 . . . . . . Security Status 1 | . . . . . 1 . . . . . . Hauler Manifests 1 | . 1 . . . . . . . . . . Registered Components 2 | . 1 . . . . . . 1 . . . Proto ID Catalog 1 | . . . 1 . . . . . . . . Fabricator Hacks 1 | . . . . . . . . 1 . . . Network Status 1 | . . . . . . . . 1 . . . Repair Station Hacks 10 | . . . . . 2 . . 8 . . . Scan Component 5 | . . . . . 1 . . 4 . . . Repair 5 | . . . . . 1 . . 4 . . . Recycling Unit Hacks 3 | . 1 . . . . . . 2 . . . Report Inventory 2 | . 1 . . . . . . 1 . . . Retrieve Components 1 | . . . . . . . . 1 . . . Scanalyzer 5 | . . . . . 5 . . . . . . Insert Component 2 | . . . . . 2 . . . . . . Analyze 2 | . . . . . 2 . . . . . . Retrieve Study 1 | . . . . . 1 . . . . . . Garrison Access Hacks 2 | . . . . . 1 . . 1 . . . Seal Access 2 | . . . . . 1 . . 1 . . . Unauthorized Hacks 20 | . 3 . . . 6 . . 11 . . . Terminals 15 | . 2 . . . 6 . . 7 . . . Track 1 | . . . . . 1 . . . . . . Assimilate 2 | . . . . . . . . 2 . . . Botnet 12 | . 2 . . . 5 . . 5 . . . Fabricators 1 | . . . . . . . . 1 . . . Fabnet 1 | . . . . . . . . 1 . . . Repair Stations . | . . . . . . . . . . . . Recycling Units 4 | . 1 . . . . . . 3 . . . Monitor 1 | . . . . . . . . 1 . . . Reject 1 | . . . . . . . . 1 . . . Recyclers 2 | . 1 . . . . . . 1 . . . Scanalyzers . | . . . . . . . . . . . . Garrison Access . | . . . . . . . . . . . . Data Cores Recovered . | . . . . . . . . . . . . Used . | . . . . . . . . . . . . Hacking Detections 27 | . 5 . . . 8 1 . 13 . . . Full Trace Events 1 | . . . . . . . . 1 . . . Feedback Events . | . . . . . . . . . . . . Feedback Blocked . | . . . . . . . . . . . . Robot Schematics Acquired 3 | . . . . . . . . . . . 3 Robots Built . | . . . . . . . . . . . . Authchips . | . . . . . . . . . . . . Time . | . . . . . . . . . . . . Total Robot Build Rating . | . . . . . . . . . . . . Part Schematics Acquired 16 | . . . . . 2 . . 1 . . 13 Parts Built . | . . . . . . . . . . . . Authchips . | . . . . . . . . . . . . Time . | . . . . . . . . . . . . Total Part Build Rating . | . . . . . . . . . . . . Part Studies Acquired 1 | . . . . . 1 . . . . . . Parts Repaired 5 | . . . . . 1 . . 4 . . . Time 141 | . . . . . 44 . . 97 . . . Parts Recycled . | . . . . . . . . . . . . Recycled Matter . | . . . . . . . . . . . . Retrieved Matter . | . . . . . . . . . . . . Retrieved Components 10 | . . . . . . . . 10 . . . Parts Scanalyzed 2 | . . . . . 2 . . . . . . Part Schematics Acquired 2 | . . . . . 2 . . . . . . Parts Damaged . | . . . . . . . . . . . . Bothacking | -11 -10 -10 -10 -9 -8 -7 -7 -6 -6 -6 -6 ------------ Run | Yrd Mat Min Exi Min Mat Fac DSF Fac Low Low Dat Used RIF Installer . | . . . . . . . . . . . . Robots Hacked . | . . . . . . . . . . . . Non-combat . | . . . . . . . . . . . . Combat . | . . . . . . . . . . . . Robot Hacks Applied . | . . . . . . . . . . . . Relay Couplers Released 3 | . . . . . . . . 3 . . . Machine Destruction 3 | . . . . . . . . 3 . . . Fabnet Peak Effective % . | . . . . . . . . . . . . Robots Rewired 2 | . . . . . . . . . 2 . . Allies Hacked . | . . . . . . . . . . . . Hacks Repelled . | . . . . . . . . . . . . Allies | -11 -10 -10 -10 -9 -8 -7 -7 -6 -6 -6 -6 -------- Run | Yrd Mat Min Exi Min Mat Fac DSF Fac Low Low Dat Total Allies 4 | . . . . . . . . 2 2 . . Largest Group 2 | . . . . . . . . 1 2 . . Highest-Rated Group 60 | . . . . . . . . 10 60 . . Highest-Rated Ally 30 | . . . . . . . . 10 30 . . Total Orders . | . . . . . . . . . . . . Ally Attacks 11 | . . . . . . . . . 11 . . Total Damage 257 | . . . . . . . . . 257 . . Kills 1 | . . . . . . . . . 1 . . Allies Corrupted 1 | . . . . . . . . . 1 . . Allies Melted . | . . . . . . . . . . . . Intel | -11 -10 -10 -10 -9 -8 -7 -7 -6 -6 -6 -6 ------- Run | Yrd Mat Min Exi Min Mat Fac DSF Fac Low Low Dat Active Infowar (turns) 7278 | 227 565 1274 828 234 1004 69 145 537 1363 881 151 IFF 535 | . . . . . . . . . . 384 151 Terrain 1390 | . . . . 231 1000 69 75 15 . . . Traps 4014 | . . . . . 901 69 114 537 1363 881 149 Seismic 2897 | 227 565 1274 828 3 . . . . . . . Robot Analysis Total 154 | . 2 . . . 2 . . 2 . . 148 Derelict Logs Recovered 4 | . . . . 1 . . . . 1 2 . Drone Launches . | . . . . . . . . . . . . Drone Recoveries . | . . . . . . . . . . . . Exploration | -11 -10 -10 -10 -9 -8 -7 -7 -6 -6 -6 -6 ------------- Run | Yrd Mat Min Exi Min Mat Fac DSF Fac Low Low Dat Turns Passed 11751 | 278 624 1274 828 1114 1064 69 205 3226 1944 881 244 Spaces Moved 6929 | 115 172 395 368 813 904 68 107 1928 1241 685 133 Core . | . . . . . . . . . . . . Treads 808 | 74 172 395 167 . . . . . . . . Legs 4106 | 41 . . . . . . 78 1928 1241 685 133 Wheels 2015 | . . . 201 813 904 68 29 . . . . Hover . | . . . . . . . . . . . . Flight . | . . . . . . . . . . . . Fastest Speed 95 | 120 160 320 140 110 95 97 97 122 120 120 120 Average Speed 143 | 145 290 320 221 119 97 97 116 126 138 120 121 Slowest Speed 320 | 160 320 320 320 140 113 97 165 197 190 120 190 Overloaded Moves . | . . . . . . . . . . . . Propulsion Burnouts . | . . . . . . . . . . . . Robots Hopped . | . . . . . . . . . . . . Potential Cave-ins 5 | . . . . . . . . . . 5 . Cave-ins Triggered 1 | . . . . . . . . . . 1 . Exploration Rate (%) 58 | 6 42 78 72 93 63 2 63 36 98 73 77 Regions Visited 11 Branch Regions 6 Pre-discovered Areas 32 | . . . 1 . . . . . 1 . 30 Known Exits Taken 3 | . 1 . . . . 1 . 1 . . . Unknown Exits Taken 7 | 1 . 1 1 1 1 . . . 1 1 . Scrap Searched 9 | . . 1 . 3 . . . . 4 1 . Spaces Dug 51 | . . . . . 15 . . 12 2 22 . Terrain Destroyed 191 | . . 1 . . 23 . . 101 39 27 . Melee 2 | . . . . . 1 . . 1 . . . Projectile 78 | . . . . . . . . 25 26 27 . AOE 111 | . . 1 . . 22 . . 75 13 . . Terrain Rammed . | . . . . . . . . . . . . Walls Destroyed . | . . . . . . . . . . . . Machines Disabled . | . . . . . . . . . . . . Actions | -11 -10 -10 -10 -9 -8 -7 -7 -6 -6 -6 -6 --------- Run | Yrd Mat Min Exi Min Mat Fac DSF Fac Low Low Dat Total 8186 | 171 243 407 382 918 1062 71 172 2486 1372 715 187 Wait 532 | 10 19 . . 48 69 . 28 304 23 10 21 Move 6917 | 114 171 394 367 812 903 67 106 1927 1240 683 133 Hop . | . . . . . . . . . . . . Pick Up 116 | 7 16 6 5 7 23 2 7 27 11 3 2 Fast Attach 23 | 1 . . . 1 2 . 1 16 2 . . Attach 38 | . 2 . . . 8 2 . 9 8 3 6 Detach 1 | . 1 . . . . . . . . . . Swap 86 | 4 3 2 3 8 15 . 9 26 10 1 5 Drop 106 | 6 3 4 6 16 24 . 7 32 6 . 2 Fire 317 | 29 28 1 . 23 13 . 13 133 55 14 8 Melee 26 | . . . . . 5 . 1 10 . . 10 Ram . | . . . . . . . . . . . . Kick 2 | . . . . . . . . 2 . . . Crush . | . . . . . . . . . . . . Escape Stasis 1 | . . . . . . . . . . 1 . Rewire 17 | . . . . . . . . . 17 . . Trap 4 | . . . 1 3 . . . . . . . Miscellaneous . | . . . . . . . . . . . . Route ------- -11/Scrapyard -10/Materials (discovered 2 exits: *Min x2) -10/Mines (discovered 3 exits: [*Mat] / *Exi / [*Sub]) -10/Exiles -9/Mines (discovered 2 exits: *Mat x2) -8/Materials (discovered 2 exits: *Fac x2) -7/Factory -7/DSF -6/Factory (discovered 3 exits: [*Fac] / *Low x2) -6/Lower Caves -6/Lower Caves (discovered 2 exits: [*Fac] / *Dat) -6/Data Miner (discovered 1 exit: [*Pro]) History --------- Turn | Location | Event 3 | -11/Scrapyard | Discovered new exit (range 1) 279 | -11/Scrapyard | Entered Materials 307 | -10/Materials | Build established: Mutant 344 | -10/Materials | Identified exit to Mines 903 | -10/Materials | Entered Mines 923 | -10/Mines | Discovered new exit (range 12) 926 | -10/Mines | Received a Rocket Launcher from a helpful Derelict 1645 | -10/Mines | Found a hidden stash of uninstalled traps 2113 | -10/Mines | Discovered new exit (range 3) 2164 | -10/Mines | Deemed a non-threat by the Exiles lab entrance 2164 | -10/Mines | Discovered new exit (range 5) 2177 | -10/Mines | Entered Exiles 2254 | -10/Exiles | Met 8R-AWN 2309 | -10/Exiles | Met EX-HEX 2477 | -10/Exiles | Met EX-DEC 2614 | -10/Exiles | Learned location of Zion (-7) 2810 | -10/Exiles | Met EX-BIN 2830 | -10/Exiles | Aligned with FarCom system 2831 | -10/Exiles | Given EX-Vault access code 2864 | -10/Exiles | Opened EX-Vault 2874 | -10/Exiles | Found Gui. Plasma Cannon 2904 | -10/Exiles | Warned to stay clear of 0b10 Research branches 2924 | -10/Exiles | Exiles lab attacked by MAIN.C 2935 | -10/Exiles | Warned about trapping Exiles lab 2994 | -10/Exiles | Discovered new exit (range 10) 3005 | -10/Exiles | Left Exiles lab with Gui. Plasma Cannon 3005 | -10/Exiles | Entered Mines 3124 | -9/Mines | Learned 8 Materials zone layouts 3148 | -9/Mines | Discovered new exit (range 5) 3206 | -9/Mines | Assembled infested the area 3649 | -9/Mines | Discovered new exit (range 11) 3806 | -9/Mines | A weapon hastily lodged in a ceiling crevice suddenly fell to the ground 3887 | -9/Mines | Found a Scrap Suit stashed away for nefarious purposes 3891 | -9/Mines | Found Scrap Suit 4119 | -9/Mines | Entered Materials 4119 | -8/Materials | Evolved 4 slots: Propulsion x1, Utility x3 4197 | -8/Materials | Build established: Scavenger-Skirmisher 4501 | -8/Materials | Discovered new exit (range 5) 4518 | -8/Materials | Build established: Skirmisher 4782 | -8/Materials | Discovered new exit (range 16) 4824 | -8/Materials | Repaired Mak. Leg? 5183 | -8/Materials | Entered Factory 5183 | -7/Factory | Evolved 2 slots: Propulsion x1, Utility x1 5224 | -7/Factory | Build established: Assassin 5252 | -7/Factory | Identified exit to DSF 5252 | -7/Factory | Entered DSF 5325 | -7/DSF | Additional patrols routed to DSF 5441 | -7/DSF | Discovered new exit (range 12) 5457 | -7/DSF | Entered Factory 5457 | -6/Factory | Evolved 2 slots: Power x1, Propulsion x1 5769 | -6/Factory | Build established: Mutant 6610 | -6/Factory | Build established: Hacker-Mutant 7067 | -6/Factory | Identified exit to Lower Caves 7326 | -6/Factory | Discovered new exit (range 6) 7549 | -6/Factory | Found Prototype Launcher 7549 | -6/Factory | Identified Scatter Rocket Array 7560 | -6/Factory | Repaired Carbon-fiber Leg 7603 | -6/Factory | Repaired Cold Fusion Reactor 7624 | -6/Factory | Repaired Titanium Leg 7645 | -6/Factory | Repaired Trap Scanner 8683 | -6/Factory | Entered Lower Caves 8946 | -6/Lower Caves | Attracted the attention of an 0b10 outpost 9241 | -6/Lower Caves | Attacked by a delusional Derelict stockpiling parts 9584 | -6/Lower Caves | Lost 7 parts (1p3n2u1w) 9851 | -6/Lower Caves | Build established: Scavenger-Mutant 10560 | -6/Lower Caves | Discovered new exit (range 16) 10627 | -6/Lower Caves | Entered another Lower Caves area 10633 | -6/Lower Caves | Spotted B-75 Beast 10682 | -6/Lower Caves | Discovered new exit (range 5) 10887 | -6/Lower Caves | Learned Factory terminal intel 10958 | -6/Lower Caves | Crushed by falling debris 10959 | -6/Lower Caves | System corruption reached 10% 10965 | -6/Lower Caves | Learned Factory stockpile data 10989 | -6/Lower Caves | Lost 3 parts (1p2u) 11192 | -6/Lower Caves | Discovered new exit (range 7) 11508 | -6/Lower Caves | Entered Data Miner 11510 | -6/Data Miner | Discovered new exit (range 6) 11532 | -6/Data Miner | Met Data Miner 11569 | -6/Data Miner | Learned location of Section 7 (-3) 11569 | -6/Data Miner | Acquired the access code to Warlord's prototype stash 11581 | -6/Data Miner | Received God Mode back door access code from Data Miner 11665 | -6/Data Miner | Interfaced with the Data Conduit 11714 | -6/Data Miner | Core integrity fell below 50% 11741 | -6/Data Miner | Core integrity fell below 20% 11752 | -6/Data Miner | Destroyed by Enhanced Grunt with Neutron Cannon Last Messages --------------- 11670_ FSLJ0/WRSK83SOYOKWP8P,EWA 11706_ Lgt. Antimatter Reactor destroyed. 11706_ Flexi-carbon Leg destroyed. 11706_ Enhanced Grunt Neutron Cannon severed. 11707_ System corrupted: Matter fused (-8). 11709_ Enhanced Grunt Adv. Energy Well severed. 11711_ Carbon-fiber Leg destroyed. 11711_ Mak. Axe follow-up attack on Enhanced Grunt. 11713_ Axe destroyed. 11713_ Flexi-carbon Leg destroyed. 11713_ Imp. Deuterium Engine destroyed. 11714_ Enhanced Grunt destroyed. 11717_ Acquired 87 matter. 11726_ Carbon-fiber Leg destroyed. 11726_ Flexi-carbon Leg destroyed. 11727_ Mak. Axe destroyed. 11735_ Enhanced Grunt knocked back. 11743_ Mic. Nuclear Core destroyed. 11744_ Destroyed Exp. Thermal Shield. 11750_ Imp. Thermal Shield destroyed. Map ----- +----------------------------------------------------+ | | | | | | | | | | | | | | | | | | | | | | | | | | | | | ???????????????????????????????????? | | ???????????????????????????????????? | | ???????????????????????????????????? | | ???????????????????????????????????? | | ???????????????????????????????????? | | ????#################??????????????# | | ???##""""""g """""""######????????## | | ???#"""""""%% """"""""# ######## | | ???""""""" % | | ??#"""""""% % | | ??#"""" !g= | | ??#""""" =!@ % | | ???"""""" ]] | | ???"""""" """""""""""" | | ???""""""" """"########## | | ????"""""" """"###????????? | | ?????"""""""" "#####??????????? | | ?????#######";# "#??????????????? | | ???????????#"##; "#??????????????? | | ???????????#"### "#??????????????? | | ???????????#"?# g"#??????????????? | | ?????????????## "#??????????????? | | ?????????????# "#??????????????? | | ?????????????### "#??????????????? | | ???????????????# "##?????????????? | | ??????????????## ""#?????????????? | | ?????????????## ""#?????????????? | | ??????????##"#"X ""#?????????????? | | ??????????""""" "####??????????? | | ??????????""""" X"""""??????????? | | ??????????##"#"X "##"#??????????? | | ???????????#?## X""""#??????????? | | ??????????????## "##"#??????????? | | ???????????????#######?????????????? | | ???????????????????????????????????? | | ???????????????????????????????????? | +----------------------------------------------------+ Best States ------------- Heat Dissipation 75 Energy Generation 34 Energy Capacity 400 Matter Stores 300 Matter Capacity 300 Sight Range 16 Terrain Scan Range 16 Terrain Scan Density 85 Base Temperature (-) 100 EM Shielding 2 Armor Coverage 600 Resistance: KI 20 Resistance: TH 25 Propulsion Shielding 33 Phase Shifting 5 Evasion (%) 60 Targeting Accuracy 8 Melee Accuracy 8 Target Analysis 5 Core Analysis 9 Recoil Reduction 2 Defensive Hacking 28 Item Schematics ----------------- Cmb. Airjet | -8/Materials | Scanalyzed Hcp. Storage Unit | -8/Materials | Scanalyzed Adv. Trap Scanner | -6/Factory | Hacked Combat Drone Bay | -6/Data Miner | Free Lgt. Regenerative Plating | -6/Data Miner | Free Enh. Flexi-carbon Leg | -6/Data Miner | Free Exp. Heat Sink | -6/Data Miner | Free Kinetic Spear | -6/Data Miner | Free Field Propulsion Array | -6/Data Miner | Free Adv. Actuator Array | -6/Data Miner | Free Hvy. Gauss Cannon | -6/Data Miner | Free Adv. System Shield | -6/Data Miner | Free Adv. Concussive RPG | -6/Data Miner | Free Nanoactuators | -6/Data Miner | Free Particle Reactor | -6/Data Miner | Free Biometal Medium Treads | -6/Data Miner | Free Robot Schematics ------------------ B-48 Gladiator | -6/Data Miner | Free Y-54 Guardian | -6/Data Miner | Free B-60 Warrior | -6/Data Miner | Free Fabricated ------------ Nothing Repaired ---------- Mak. Leg | 88% | -8/Materials Carbon-fiber Leg | 28% | -6/Factory Cold Fusion Reactor | 20% | -6/Factory Titanium Leg | 44% | -6/Factory Trap Scanner | 20% | -6/Factory Studied --------- Arm. Treads | -8/Materials | Hacked Alien Tech Used ----------------- None Achievements -------------- Deductive Reasoning Unlimited Data Challenges ------------ None Game ------ Seed QuantumTitaniumMesh Manual? 0 Play Time 03:45:33 Cumulative 296.8 hours Start 2026.01.11 @ 12:15:12 End 2026.01.12 @ 00:18:34 Sessions 7 Manual Loads 0 Difficulty Rogue Special Mode None Game No. 93 Rogue 93 Adventurer 0 Explorer 0 Win Type - Total 2 Types 2/0/0/0/0/0/0/0/0/0 Lore% 60 Gallery% 64 Achievement% 46 Wizard Run 0 Options --------- Layout 0 ASCII 0 Keyboard 0 Movement Numpad Keybinds 1 Fullscreen 2 Font 18/X11 Map View 76x50 Zoom Use 0% Tactical HUD 1 Map Filters NONE Filters NONE Steam 1 RUN: 395b37fd-34c1-4213-bb6f-b00b7245c120